bitfinex-derivatives/quotes_BTCF0:USTF0_20210708
["timestamp","ask_amount","ask_price","bid_price","bid_amount"]
[1625751636618,1.03996018,32430.0,32427.0,0.23957544]
[1625751636767,0.24057544,32431.0,32427.0,0.23957544]
[1625751636768,1.28086881,32431.0,32427.0,0.23957544]
[1625751637293,1.03992387,32430.0,32427.0,0.23957544]
[1625751637441,1.03992387,32430.0,32427.0,0.23857544]
[1625751638194,1.37829387,32430.0,32427.0,0.23857544]
[1625751639019,1.03967756,32429.0,32427.0,0.23857544]
[1625751639171,1.03967756,32429.0,32426.0,0.23757544]
[1625751640222,1.03967756,32429.0,32426.0,0.23657544]
[1625751640819,0.24057544,32427.0,32426.0,0.23657544]
[1625751641571,0.41398546,32427.0,32426.0,0.23657544]
[1625751643222,0.41398546,32427.0,32426.0,0.23557544]
[1625751644727,0.24057544,32427.0,32426.0,0.23557544]
[1625751645175,0.41411177,32427.0,32426.0,0.23557544]
[1625751645476,0.46966544,32427.0,32426.0,0.23557544]
[1625751646226,1.50921831,32427.0,32426.0,0.23457544]
[1625751646526,2.72156922,32427.0,32426.0,0.23457544]
[1625751646675,2.72156922,32427.0,32423.0,0.24057544]
[1625751646829,0.48115088,32424.0,32423.0,0.24057544]
[1625751647023,2.73045144,32424.0,32423.0,0.24057544]
[1625751647126,2.73045144,32424.0,32419.0,0.24057544]
[1625751647127,4.11420266,32424.0,32419.0,0.24057544]
[1625751647275,4.11420266,32424.0,32413.0,0.24057544]
[1625751647425,1.03758359,32421.0,32413.0,0.24057544]
[1625751647729,0.17305669,32418.0,32413.0,0.24057544]
[1625751647877,0.51746669,32418.0,32413.0,0.24057544]
[1625751648029,0.34441,32418.0,32413.0,0.24057544]
[1625751648177,0.51755278,32418.0,32413.0,0.24057544]
[1625751648478,0.34441,32418.0,32413.0,0.24057544]
[1625751648855,0.24057544,32414.0,32413.0,0.24057544]
[1625751649303,0.24057544,32414.0,32413.0,0.23957544]
[1625751652307,0.24057544,32414.0,32413.0,0.23857544]
[1625751655383,0.24057544,32414.0,32413.0,0.23757544]
[1625751658247,0.24057544,32414.0,32413.0,0.23657544]
[1625751661320,0.24057544,32414.0,32413.0,0.23557544]
[1625751662373,0.41483133,32414.0,32413.0,0.23557544]
[1625751662521,0.76282827,32414.0,32413.0,0.23557544]
[1625751662898,1.80691307,32414.0,32413.0,0.23557544]
[1625751663345,1.80691307,32414.0,32410.0,0.24057544]
[1625751663645,0.17408248,32411.0,32410.0,0.24057544]
[1625751663795,0.82536608,32411.0,32410.0,0.24057544]
[1625751664396,0.82536608,32411.0,32410.0,0.23957544]
[1625751665002,1.06594152,32411.0,32410.0,0.23957544]
[1625751667252,1.06594152,32411.0,32410.0,0.23857544]
[1625751668151,2.1084942,32411.0,32410.0,0.23857544]
[1625751668451,1.06594152,32411.0,32410.0,0.23857544]
[1625751668602,1.06594152,32411.0,32410.0,0.42030826]
[1625751668901,1.41375131,32411.0,32410.0,0.78377003]
[1625751669200,1.06594152,32411.0,32410.0,0.42030826]
[1625751669352,1.06559143,32411.0,32410.0,1.02396555]
[1625751669502,0.76258143,32411.0,32410.0,1.02396555]
[1625751669652,0.76258143,32411.0,32410.0,2.11537521]
[1625751669802,0.4146354,32411.0,32410.0,2.11537521]
[1625751670401,0.76310133,32411.0,32410.0,2.11437521]
[1625751670552,0.76310133,32411.0,32410.0,2.8417509]
[1625751670868,0.4146354,32411.0,32410.0,2.8417509]
[1625751671312,0.76322435,32411.0,32410.0,2.8417509]
[1625751672091,0.76337006,32411.0,32410.0,1.75068439]
[1625751672361,1.46030921,32411.0,32410.0,1.75068439]
[1625751672507,0.76337006,32411.0,32410.0,1.75068439]
[1625751672811,1.78602995,32411.0,32410.0,1.75068439]
[1625751673257,1.78602995,32411.0,32410.0,1.74968439]
[1625751673581,1.08936453,32411.0,32410.0,2.84112636]
[1625751674415,0.41485984,32411.0,32410.0,2.84112636]
[1625751674533,0.24057544,32411.0,32410.0,4.1143845]
[1625751674833,0.52296656,32414.0,32410.0,4.1143845]
[1625751674985,0.20911692,32432.0,32410.0,5.7382845]
[1625751675153,1.39865115,32422.0,32413.0,0.48115088]
[1625751675324,0.20911692,32432.0,32421.0,1.81848016]
[1625751675325,0.27251173,32424.0,32421.0,1.81848016]
[1625751675452,0.27251173,32424.0,32422.0,0.5]
[1625751675646,1.38666022,32440.0,32423.0,3.27220706]
[1625751675872,1.40467773,32447.0,32438.0,1.4540116]
[1625751675922,1.40467773,32447.0,32439.0,0.5]
[1625751676158,1.40341128,32445.0,32438.0,0.21761]
[1625751676385,1.75422025,32453.0,32438.0,0.21761]
[1625751676386,0.057,32453.0,32438.0,0.21761]
[1625751676488,1.75707636,32459.0,32438.0,0.21761]
[1625751676653,0.9328,32464.0,32438.0,0.21761]
[1625751676788,2.69222136,32465.0,32445.0,4.6027]
[1625751676947,2.69222136,32465.0,32446.0,0.057]
[1625751677086,2.69222136,32465.0,32462.0,0.18357544]
[1625751677259,1.75268697,32464.0,32446.0,0.057]
[1625751677537,1.75186063,32463.0,32446.0,0.057]
[1625751677770,1.75149432,32462.0,32446.0,0.057]
[1625751678514,4.9982,32463.0,32446.0,0.057]
[1625751679113,0.24057544,32456.0,32455.0,0.24057544]
[1625751679265,0.24057544,32456.0,32455.0,0.23957544]
[1625751682427,0.24057544,32456.0,32455.0,0.23857544]
[1625751684897,0.24057544,32456.0,32452.0,0.24057544]
[1625751685047,0.48115088,32453.0,32452.0,0.24057544]
[1625751685350,0.48115088,32453.0,32452.0,0.23957544]
[1625751685501,0.80088088,32453.0,32449.0,0.24057544]
[1625751687151,0.24057544,32450.0,32449.0,0.24057544]
[1625751687750,0.24057544,32450.0,32449.0,0.29757544]
[1625751688354,0.24057544,32450.0,32449.0,0.29657544]
[1625751689103,0.24057544,32450.0,32449.0,0.53715088]
[1625751691579,0.52903544,32450.0,32439.0,0.48115088]
[1625751691882,0.52903544,32450.0,32439.0,0.48015088]
[1625751693099,0.48115088,32440.0,32439.0,0.48015088]
[1625751693291,0.48115088,32440.0,32439.0,0.53715088]
[1625751693552,0.24057544,32440.0,32439.0,0.53715088]
[1625751694284,0.24057544,32445.0,32439.0,0.53615088]
[1625751694455,0.24057544,32445.0,32439.0,0.84019088]
[1625751695110,0.24057544,32445.0,32444.0,0.24057544]
[1625751695560,0.24057544,32445.0,32444.0,0.29757544]
[1625751695871,0.24057544,32450.0,32444.0,0.29757544]
[1625751697209,0.24057544,32450.0,32449.0,0.24057544]
[1625751697366,0.24057544,32450.0,32449.0,0.51546544]
[1625751697515,0.24057544,32450.0,32449.0,0.51446544]
[1625751700212,0.24057544,32450.0,32449.0,0.51346544]
[1625751700363,0.24057544,32450.0,32439.0,0.54261544]
[1625751700585,0.48623544,32450.0,32432.0,1.25845704]
[1625751700763,0.48623544,32450.0,32427.0,1.25851578]
[1625751700994,0.48623544,32450.0,32425.0,1.25858881]
[1625751701127,0.48623544,32450.0,32437.0,0.24057544]
[1625751701128,0.24057544,32438.0,32437.0,0.24057544]
[1625751701413,0.24057544,32438.0,32437.0,0.29757544]
[1625751702765,0.24057544,32438.0,32437.0,4.59107544]
[1625751702919,0.24057544,32444.0,32437.0,4.59107544]
[1625751703066,0.24057544,32444.0,32437.0,4.88887544]
[1625751703214,0.24057544,32444.0,32443.0,0.24057544]
[1625751703365,0.24057544,32444.0,32443.0,0.29657544]
[1625751706517,0.24057544,32444.0,32443.0,0.29557544]
[1625751709968,0.24057544,32444.0,32443.0,0.29457544]
[1625751712297,0.24057544,32444.0,32443.0,0.29357544]
[1625751713878,0.58645544,32444.0,32443.0,0.23657544]
[1625751714025,0.58645544,32444.0,32440.0,0.24057544]
[1625751715301,0.24057544,32441.0,32440.0,0.24057544]
[1625751715451,0.24057544,32441.0,32440.0,0.23957544]
[1625751718455,0.24057544,32441.0,32440.0,0.23857544]
[1625751719054,0.46653544,32441.0,32440.0,0.23857544]
[1625751721305,0.46653544,32441.0,32440.0,0.23757544]
[1625751724235,0.46653544,32441.0,32440.0,0.23657544]
[1625751724384,0.46653544,32441.0,32439.0,0.24057544]
[1625751724385,0.46653544,32441.0,32433.0,0.057]
[1625751724533,0.46653544,32441.0,32432.0,0.24057544]
[1625751724834,5.80613544,32441.0,32432.0,0.24057544]
[1625751725284,0.48115088,32433.0,32432.0,0.24057544]
[1625751725435,0.82072088,32433.0,32432.0,0.24057544]
[1625751727540,0.82072088,32433.0,32432.0,0.23957544]
[1625751728590,0.82072088,32433.0,32432.0,1.32439981]
[1625751729041,0.82072088,32433.0,32432.0,1.38139981]
[1625751729190,0.48115088,32433.0,32432.0,1.38139981]
[1625751729342,0.48115088,32433.0,32432.0,2.64691805]
[1625751729643,0.48115088,32433.0,32432.0,4.09315647]
[1625751730245,0.48115088,32433.0,32432.0,4.09215647]
[1625751730391,0.48115088,32433.0,32432.0,5.72106531]
[1625751730541,0.48115088,32433.0,32432.0,5.94282531]
[1625751734679,0.48115088,32433.0,32432.0,7.7620251]
[1625751735727,0.48115088,32433.0,32432.0,8.48971547]
[1625751739406,0.24057544,32433.0,32432.0,8.48971547]
[1625751739556,0.24057544,32437.0,32432.0,8.48971547]
[1625751739720,0.24057544,32441.0,32432.0,8.48971547]
[1625751740008,0.24057544,32441.0,32436.0,8.003886]
[1625751740160,0.24057544,32441.0,32437.0,0.057]
[1625751740306,0.24057544,32441.0,32440.0,12.8473736]
[1625751740479,0.24057544,32441.0,32440.0,13.2108236]
[1625751740605,0.9495,32448.0,32440.0,13.2108236]
[1625751740757,0.70181027,32453.0,32440.0,13.2108236]
[1625751740908,0.70181027,32453.0,32447.0,6.18224916]
[1625751741057,0.70181027,32453.0,32448.0,0.057]
[1625751741206,1.0526277,32454.0,32449.0,4.54572582]
[1625751741207,0.70197797,32454.0,32449.0,4.54572582]
[1625751741358,0.24057544,32453.0,32449.0,5.0838767]
[1625751743234,0.94180252,32453.0,32449.0,5.0828767]
[1625751743386,0.24057544,32452.0,32449.0,5.0828767]
[1625751743535,0.94167774,32452.0,32449.0,3.62924444]
[1625751744512,1.0176933,32450.0,32449.0,3.62924444]
[1625751745558,1.0176933,32450.0,32449.0,3.62824444]
[1625751746311,1.0176933,32450.0,32449.0,3.90493444]
[1625751748494,1.0176933,32450.0,32449.0,3.90393444]
[1625751749467,1.0176933,32450.0,32449.0,3.663359]
[1625751749618,1.0176933,32450.0,32449.0,3.386669]
[1625751750744,0.9299,32450.0,32449.0,3.386669]
[1625751750968,1.01768707,32450.0,32449.0,3.386669]
[1625751751571,1.01768707,32450.0,32449.0,3.385669]
[1625751752621,1.01768707,32450.0,32449.0,3.328669]
[1625751752921,1.01768707,32450.0,32449.0,2.05586577]
[1625751753523,1.01768707,32450.0,32449.0,3.5986691]
[1625751754054,0.9299,32450.0,32449.0,3.5986691]
[1625751754350,0.9299,32450.0,32449.0,3.5976691]
[1625751757365,0.9299,32450.0,32449.0,3.5966691]
[1625751758747,0.9299,32450.0,32449.0,3.35609366]
[1625751758944,0.9299,32450.0,32449.0,1.19359095]
[1625751759048,0.9299,32450.0,32444.0,1.63503426]
[1625751759049,1.97781137,32450.0,32447.0,1.0901043]
[1625751759342,0.9299,32450.0,32449.0,0.0908439]
[1625751759458,0.9299,32450.0,32448.0,0.09084714]
[1625751759983,0.9299,32450.0,32441.0,1.45358616]
[1625751760283,0.9299,32450.0,32441.0,1.45258616]
[1625751761285,0.9299,32450.0,32441.0,1.50958616]
[1625751761456,0.9299,32450.0,32441.0,0.057]
[1625751761597,0.48115088,32442.0,32441.0,1.69213571]
[1625751763364,0.48115088,32442.0,32441.0,1.69113571]
[1625751765086,0.48115088,32442.0,32441.0,2.23616991]
[1625751766364,0.48115088,32442.0,32441.0,2.23516991]
[1625751766667,0.48115088,32442.0,32441.0,2.18016991]
[1625751767114,0.48115088,32442.0,32441.0,0.5450342]
[1625751769666,0.48115088,32442.0,32441.0,0.5440342]
[1625751770417,0.83268088,32442.0,32441.0,0.5440342]
[1625751772294,0.83268088,32442.0,32441.0,0.5430342]
[1625751773572,0.48115088,32442.0,32441.0,0.5430342]
[1625751775221,0.48115088,32442.0,32441.0,0.5420342]
[1625751775371,0.48115088,32442.0,32441.0,0.8815842]
[1625751775523,0.48115088,32442.0,32441.0,2.33520745]
[1625751778452,0.48115088,32442.0,32441.0,2.33420745]
[1625751779201,0.48115088,32442.0,32441.0,3.60628911]
[1625751780703,0.71711088,32442.0,32441.0,3.60628911]
[1625751780853,0.71711088,32442.0,32441.0,3.26673911]
[1625751781453,0.71711088,32442.0,32441.0,3.26573911]
[1625751781604,0.95768632,32442.0,32441.0,3.26573911]
[1625751784304,0.95768632,32442.0,32441.0,3.26473911]
[1625751785509,0.95768632,32442.0,32441.0,1.81111586]
[1625751785807,0.95768632,32442.0,32441.0,0.5390342]
[1625751787384,0.95768632,32442.0,32441.0,0.5380342]
[1625751788435,0.95768632,32442.0,32439.0,1.27319722]
[1625751788586,5.0476,32440.0,32439.0,0.05829722]
[1625751788885,5.0476,32440.0,32437.0,1.27369646]
[1625751789040,1.04408862,32438.0,32436.0,1.09164176]
[1625751789337,1.04318813,32437.0,32434.0,1.09105768]
[1625751789637,1.0,32439.0,32430.0,1.45475945]
[1625751789638,0.72172632,32435.0,32430.0,1.45475945]
[1625751789786,1.03458632,32435.0,32430.0,1.45475945]
[1625751790091,1.03458632,32435.0,32429.0,1.45478788]
[1625751790539,1.03458632,32435.0,32425.0,1.6366813]
[1625751791290,1.03458632,32435.0,32424.0,0.24057544]
[1625751791291,1.03458632,32435.0,32424.0,1.8760742]
[1625751791592,0.37161295,32425.0,32424.0,1.8760742]
[1625751792342,0.37161295,32425.0,32424.0,1.9330742]
[1625751792792,0.37161295,32425.0,32424.0,5.9948742]
[1625751793242,0.37161295,32425.0,32424.0,5.9938742]
[1625751793994,0.37161295,32425.0,32424.0,7.81033765]
[1625751794371,0.37161295,32425.0,32424.0,5.9938742]
[1625751796246,0.37161295,32425.0,32424.0,5.9928742]
[1625751805558,0.37161295,32425.0,32424.0,7.44453616]
[1625751808711,0.37161295,32425.0,32424.0,8.71466742]
[1625751811638,0.37161295,32425.0,32424.0,4.65286742]
[1625751811788,0.37161295,32425.0,32424.0,4.41429198]
[1625751812035,0.37161295,32425.0,32424.0,4.35729198]
[1625751812089,0.37161295,32425.0,32424.0,2.72179322]
[1625751812852,0.37161295,32425.0,32424.0,1.27013126]
[1625751813139,0.37161295,32425.0,32422.0,1.45179155]
[1625751813140,0.37161295,32425.0,32422.0,1.27039213]
[1625751813293,0.37161295,32425.0,32421.0,1.26980466]
[1625751813590,0.37161295,32425.0,32421.0,4.66e-06]
[1625751813740,0.48115088,32422.0,32419.0,1.4512178]
[1625751813899,0.79955088,32422.0,32416.0,1.45133552]
[1625751814054,1.79955088,32422.0,32421.0,0.36285467]
[1625751814189,1.79955088,32422.0,32416.0,1.45133552]
[1625751814340,0.79955088,32422.0,32415.0,1.4514171]
[1625751814566,1.0,32420.0,32415.0,1.4514171]
[1625751814868,1.0,32421.0,32411.0,1.6331758]
[1625751815165,1.0,32420.0,32412.0,1.45203668]
[1625751815316,1.0,32420.0,32411.0,1.45062598]
[1625751815465,1.0,32421.0,32411.0,1.45062598]
[1625751815614,1.0,32421.0,32410.0,1.45062857]
[1625751815765,4.49562632,32411.0,32410.0,1.45062857]
[1625751815919,4.77210632,32411.0,32410.0,1.45062857]
[1625751816518,4.77210632,32411.0,32407.0,1.63195423]
[1625751816972,4.77210632,32411.0,32410.0,1.45060585]
[1625751818042,4.77210632,32411.0,32407.0,1.45080241]
[1625751818365,5.77210632,32411.0,32407.0,1.45080241]
[1625751818474,5.77210632,32411.0,32405.0,1.45096166]
[1625751818918,6.27210632,32411.0,32405.0,1.45096166]
[1625751819069,1.0,32407.0,32405.0,1.45096166]
[1625751819250,1.0,32407.0,32404.0,1.4512437]
[1625751819555,1.0,32407.0,32395.0,0.057]
[1625751819556,1.0,32407.0,32406.0,1.81149721]
[1625751819692,1.0,32407.0,32406.0,0.72459888]
[1625751819857,0.24057544,32407.0,32406.0,0.72459888]
[1625751820125,0.24057544,32407.0,32405.0,1.81151158]
[1625751820275,0.33337544,32407.0,32405.0,1.81151158]
[1625751820426,0.33337544,32407.0,32405.0,0.72459801]
[1625751821212,0.24057544,32407.0,32405.0,0.72459801]
[1625751821369,0.24057544,32407.0,32404.0,0.72373388]
[1625751821629,0.24057544,32407.0,32404.0,1.8093194]
[1625751821779,0.48115088,32405.0,32404.0,0.72373388]
[1625751822081,0.48115088,32405.0,32404.0,1.80930984]
[1625751822832,0.75306088,32405.0,32404.0,1.80930984]
[1625751823286,0.75306088,32405.0,32404.0,0.72373388]
[1625751823972,0.75306088,32405.0,32404.0,1.86542359]
[1625751824106,0.48115088,32405.0,32404.0,1.86542359]
[1625751824257,0.48115088,32405.0,32404.0,1.80842359]
[1625751825910,0.73105088,32405.0,32404.0,0.72373388]
[1625751826059,0.73105088,32405.0,32404.0,0.1806913]
[1625751826359,0.73105088,32405.0,32403.0,0.7227652]
[1625751827348,0.73105088,32405.0,32404.0,0.18060569]
[1625751829289,0.73105088,32405.0,32403.0,0.18052083]
[1625751831315,0.73105088,32405.0,32402.0,0.18046062]
[1625751831635,0.48115088,32405.0,32402.0,0.18046062]
[1625751831779,0.24057544,32403.0,32402.0,0.18046062]
[1625751831925,0.24057544,32403.0,32401.0,0.72183945]
[1625751832073,0.24057544,32403.0,32401.0,0.77883945]
[1625751832231,0.24057544,32403.0,32401.0,0.72183945]
[1625751832387,0.24057544,32403.0,32402.0,0.18045725]
[1625751833120,0.24057544,32403.0,32402.0,0.057]
[1625751833286,0.24057544,32403.0,32402.0,0.23741585]
[1625751833944,0.24057544,32403.0,32402.0,0.057]
[1625751834394,0.24057544,32403.0,32400.0,1.08281295]
[1625751834848,0.24057544,32403.0,32401.0,0.1804427]
[1625751834998,1.24057544,32403.0,32397.0,0.18046976]
[1625751835147,0.5,32402.0,32397.0,0.18046976]
[1625751835301,0.5,32402.0,32393.0,1.26328833]
[1625751835302,1.0,32398.0,32393.0,0.70140456]
[1625751835445,1.83938,32398.0,32393.0,0.70140456]
[1625751835744,1.83938,32398.0,32393.0,0.65530456]
[1625751835894,0.72172632,32394.0,32393.0,0.65530456]
[1625751836050,0.72172632,32394.0,32390.0,1.26336639]
[1625751836051,0.72172632,32394.0,32390.0,0.18036513]
[1625751836207,1.72172632,32394.0,32389.0,0.7214605]
[1625751836398,1.72172632,32394.0,32389.0,0.5074605]
[1625751836531,1.72172632,32394.0,32385.0,1.44292101]
[1625751836533,5.5399,32390.0,32385.0,1.08222179]
[1625751836719,5.78442,32390.0,32383.0,1.08257576]
[1625751836967,5.78442,32390.0,32382.0,1.08261768]
[1625751837412,1.0,32388.0,32382.0,1.08261768]
[1625751837562,1.0,32387.0,32382.0,1.08261768]
[1625751837715,1.0,32387.0,32381.0,0.057]
[1625751837716,1.0,32387.0,32381.0,1.13962584]
[1625751837849,0.72172632,32382.0,32381.0,1.13962584]
[1625751838000,0.96636632,32382.0,32381.0,1.13962584]
[1625751838448,0.96636632,32382.0,32378.0,1.0813207]
[1625751839872,0.24057544,32379.0,32377.0,1.08158595]
[1625751840773,0.24057544,32379.0,32378.0,1.08160144]
[1625751841074,0.24057544,32379.0,32377.0,1.08162011]
[1625751841524,0.24057544,32379.0,32378.0,1.08187281]
[1625751842126,0.24057544,32379.0,32377.0,1.08189454]
[1625751842275,4.9587,32378.0,32377.0,0.057]
[1625751843330,4.9587,32378.0,32375.0,1.08056043]
[1625751843630,4.9587,32378.0,32376.0,0.057]
[1625751843929,0.24057544,32377.0,32376.0,0.057]
[1625751845524,0.24057544,32377.0,32376.0,6.05952312]
[1625751845957,7.544e-05,32377.0,32376.0,1.13712312]
[1625751846220,0.48115088,32382.0,32376.0,2.39720521]
[1625751846356,0.48115088,32382.0,32376.0,4.17776526]
[1625751846650,0.48115088,32382.0,32381.0,1.0794675]
[1625751846788,0.48115088,32382.0,32381.0,1.1364675]
[1625751846935,0.48115088,32382.0,32381.0,0.057]
[1625751847836,0.48115088,32382.0,32381.0,0.29757544]
[1625751847987,0.48115088,32382.0,32381.0,1.61780263]
[1625751848212,0.48115088,32382.0,32381.0,0.53815088]
[1625751848679,0.48115088,32382.0,32381.0,0.48115088]
[1625751848855,0.48115088,32382.0,32381.0,0.53815088]
[1625751849938,0.48115088,32382.0,32381.0,0.29757544]
[1625751851593,0.24057544,32382.0,32381.0,0.29757544]
[1625751851743,0.24057544,32389.0,32381.0,0.29757544]
[1625751851893,0.24057544,32389.0,32388.0,0.24057544]
[1625751852046,0.24057544,32389.0,32388.0,0.63636544]
[1625751856626,0.24057544,32389.0,32388.0,0.29757544]
[1625751856775,0.24057544,32389.0,32388.0,0.24057544]
[1625751858427,0.24057544,32389.0,32388.0,0.29757544]
[1625751859027,0.24057544,32389.0,32388.0,0.24057544]
[1625751859477,0.24057544,32389.0,32388.0,0.29757544]
[1625751859628,0.24057544,32389.0,32388.0,0.24057544]
[1625751860381,0.24057544,32389.0,32384.0,0.24057544]
[1625751860680,0.24057544,32389.0,32384.0,0.29757544]
[1625751862029,0.24057544,32385.0,32384.0,0.29757544]
[1625751863907,0.58878544,32385.0,32384.0,0.29757544]
[1625751864208,0.58878544,32385.0,32384.0,0.24057544]
[1625751865485,0.58878544,32385.0,32382.0,0.24057544]
[1625751865704,0.0936,32384.0,32377.0,1.08156174]
[1625751865815,0.0936,32384.0,32376.0,0.24057544]
[1625751865935,0.48115088,32377.0,32376.0,0.24057544]
[1625751866085,0.81491088,32377.0,32376.0,0.24057544]
[1625751866264,0.81491088,32377.0,32373.0,1.08244261]
[1625751866543,0.81491088,32377.0,32372.0,0.24057544]
[1625751867741,0.81491088,32377.0,32367.0,1.32381354]
[1625751868041,0.48115088,32368.0,32367.0,0.24057544]
[1625751868191,0.71467088,32368.0,32367.0,0.24057544]
[1625751868492,0.71467088,32368.0,32367.0,0.29757544]
[1625751869243,0.71467088,32368.0,32367.0,0.24057544]
[1625751875029,0.71467088,32368.0,32364.0,0.24057544]
[1625751875175,0.71467088,32368.0,32363.0,1.0844147]
[1625751875325,0.71467088,32368.0,32362.0,1.08442207]
[1625751875476,0.71467088,32368.0,32360.0,1.32568693]
[1625751875777,4.4055,32361.0,32360.0,0.24057544]
[1625751875925,4.64656,32361.0,32360.0,0.24057544]
[1625751876075,5.12771088,32361.0,32360.0,0.24057544]
[1625751876225,5.12771088,32361.0,32359.0,1.08512728]
[1625751876376,5.12771088,32361.0,32358.0,1.0842408]
[1625751876528,0.72221088,32361.0,32359.0,0.057]
[1625751876680,0.72221088,32361.0,32359.0,1.14121435]
[1625751876827,0.48115088,32361.0,32360.0,1.08418096]
[1625751876976,0.48115088,32361.0,32360.0,1.14118096]
[1625751877127,0.48115088,32361.0,32360.0,1.23318096]
[1625751877727,0.48115088,32361.0,32360.0,1.14118096]
[1625751878030,0.48115088,32361.0,32360.0,1.3817564]
[1625751878552,0.48115088,32361.0,32360.0,1.92357312]
[1625751879003,0.24057544,32361.0,32360.0,1.92357312]
[1625751880053,0.48115088,32368.0,32360.0,1.92357312]
[1625751880353,0.48115088,32368.0,32362.0,0.54173196]
[1625751880505,0.48115088,32368.0,32363.0,0.057]
[1625751880827,0.0939,32367.0,32361.0,0.54174688]
[1625751880954,0.5939,32367.0,32357.0,0.54180611]
[1625751881360,0.5939,32367.0,32356.0,0.49811834]
[1625751881361,1.0,32362.0,32356.0,0.49811834]
[1625751881405,4.8383,32357.0,32348.0,0.5419676]
[1625751881555,5.17647,32357.0,32344.0,0.54213274]
[1625751882005,5.17647,32357.0,32344.0,0.34463274]
[1625751882155,0.24057544,32346.0,32345.0,0.24057544]
[1625751882305,0.45458544,32346.0,32335.0,1.8670003]
[1625751882757,0.24057544,32346.0,32335.0,1.8670003]
[1625751883658,0.24057544,32346.0,32339.0,1.26303358]
[1625751883807,0.24057544,32346.0,32339.0,1.50452358]
[1625751883956,0.24057544,32350.0,32341.0,1.262963]
[1625751884120,0.24057544,32350.0,32349.0,0.48115088]
[1625751884259,0.24057544,32358.0,32349.0,0.70054088]
[1625751884857,0.24057544,32362.0,32349.0,0.70054088]
[1625751885609,0.24057544,32362.0,32349.0,0.48115088]
[1625751886061,0.24057544,32362.0,32361.0,0.48115088]
[1625751887561,0.24057544,32362.0,32361.0,0.70400088]
[1625751888762,0.24057544,32362.0,32361.0,0.48115088]
[1625751891017,0.24057544,32362.0,32361.0,0.24057544]
[1625751896577,0.58116544,32362.0,32361.0,0.24057544]
[1625751897925,0.24057544,32362.0,32361.0,0.24057544]
[1625751899051,0.24057544,32362.0,32361.0,0.47546544]
[1625751900101,0.24057544,32362.0,32361.0,0.24057544]
[1625751914816,0.24057544,32362.0,32350.0,0.24057544]
[1625751914965,1.24057544,32362.0,32350.0,0.24057544]
[1625751915169,1.24057544,32362.0,32341.0,0.057]
[1625751915170,1.24057544,32362.0,32345.0,1.0002]
[1625751915267,4.4471,32353.0,32345.0,1.0002]
[1625751915448,0.094,32352.0,32342.0,0.72275727]
[1625751915577,4.85253,32353.0,32341.0,0.72276376]
[1625751915578,4.76093,32353.0,32341.0,0.72276376]
[1625751916076,4.76093,32353.0,32339.0,0.7228444]
[1625751916402,4.76093,32353.0,32338.0,1.0842666]
[1625751916403,0.24057544,32341.0,32337.0,0.72317913]
[1625751916470,0.49213544,32341.0,32337.0,0.72317913]
[1625751916659,0.49213544,32341.0,32334.0,0.96382717]
[1625751917574,0.49213544,32341.0,32334.0,0.24057544]
[1625751918275,0.49213544,32341.0,32330.0,0.72328411]
[1625751918276,0.72172632,32335.0,32330.0,0.72328411]
[1625751918496,0.72172632,32335.0,32329.0,0.72333498]
[1625751918749,0.72172632,32335.0,32324.0,1.68724541]
[1625751918750,0.72172632,32335.0,32327.0,1.80838047]
[1625751918899,4.8593,32331.0,32327.0,1.80838047]
[1625751919044,5.1888,32331.0,32327.0,0.72335219]
[1625751919781,5.1888,32331.0,32326.0,0.72342878]
[1625751920296,0.48115088,32327.0,32326.0,0.72342878]
[1625751921198,0.48115088,32327.0,32326.0,1.80850053]
[1625751922485,0.24057544,32327.0,32326.0,1.80850053]
[1625751924050,0.3295,32331.0,32326.0,1.80850053]
[1625751924200,0.48115088,32335.0,32326.0,1.80850053]
[1625751924350,0.48115088,32335.0,32334.0,0.24057544]
[1625751927247,0.24057544,32339.0,32334.0,0.24057544]
[1625751928406,0.24057544,32339.0,32338.0,0.24057544]
[1625751929908,0.24057544,32342.0,32338.0,0.24057544]
[1625751930359,0.24057544,32342.0,32341.0,0.24057544]
[1625751933570,0.24057544,32342.0,32341.0,0.48196544]
[1625751935614,0.24057544,32342.0,32341.0,0.24057544]
[1625751937720,0.24057544,32346.0,32341.0,0.24057544]
[1625751938086,0.24057544,32349.0,32341.0,0.49588544]
[1625751938211,0.24057544,32349.0,32342.0,0.36231491]
[1625751938375,0.24057544,32353.0,32342.0,0.36231491]
[1625751938510,0.24057544,32353.0,32352.0,0.48115088]
[1625751938643,0.24057544,32353.0,32352.0,0.69534088]
[1625751939446,0.58251185,32353.0,32352.0,0.69534088]
[1625751939690,0.24057544,32353.0,32352.0,0.69534088]
[1625751939821,0.24057544,32353.0,32352.0,0.48115088]
[1625751940273,0.58274822,32353.0,32352.0,0.48115088]
[1625751940722,0.58274822,32353.0,32352.0,0.43505088]
[1625751941029,0.24057544,32353.0,32347.0,0.24057544]
[1625751941172,0.46600544,32353.0,32347.0,0.24057544]
[1625751941323,0.08564237,32350.0,32347.0,0.24057544]
[1625751941622,0.08565168,32351.0,32347.0,0.24057544]
[1625751941925,0.42771619,32351.0,32347.0,0.24057544]
[1625751942524,0.42771619,32351.0,32349.0,0.24057544]
[1625751942678,0.08565168,32351.0,32349.0,0.24057544]
[1625751942826,0.48115088,32353.0,32349.0,0.24057544]
[1625751944481,0.48115088,32353.0,32352.0,0.24057544]
[1625751945233,0.24057544,32353.0,32352.0,0.51907544]
[1625751945830,0.24057544,32357.0,32352.0,0.51907544]
[1625751946507,0.08565603,32358.0,32356.0,0.48115088]
[1625751947408,0.4276655,32358.0,32356.0,0.48115088]
[1625751948158,0.34200947,32358.0,32356.0,0.48115088]
[1625751948307,0.34197139,32357.0,32356.0,0.48115088]
[1625751948910,0.42762752,32357.0,32356.0,0.48115088]
[1625751949208,0.08565613,32357.0,32356.0,0.48115088]
[1625751949735,0.34218351,32358.0,32356.0,0.48115088]
[1625751949736,0.42786,32358.0,32356.0,0.48115088]
[1625751950335,0.08568326,32357.0,32356.0,0.48115088]
[1625751950500,3.567e-05,32359.0,32356.0,0.48115088]
[1625751950672,5.351e-05,32360.0,32356.0,0.48115088]
[1625751950935,1.19986912,32369.0,32356.0,0.48115088]
[1625751951237,2.16362613,32371.0,32356.0,0.48115088]
[1625751951411,1.20082613,32371.0,32356.0,0.48115088]
[1625751951553,1.20109067,32373.0,32357.0,1.26979806]
[1625751951708,1.20109067,32373.0,32364.0,5.2023]
[1625751951836,1.20109067,32373.0,32364.0,5.46619]
[1625751952199,1.37265054,32375.0,32364.0,5.46619]
[1625751952200,1.20165555,32375.0,32364.0,5.46619]
[1625751952303,2.57522715,32376.0,32364.0,5.46619]
[1625751952435,1.20193104,32376.0,32375.0,0.48115088]
[1625751952590,1.20193104,32376.0,32375.0,0.94030632]
[1625751952902,1.20225041,32378.0,32375.0,0.94030632]
[1625751953216,1.44240966,32380.0,32375.0,0.94030632]
[1625751953665,1.20118667,32377.0,32375.0,0.72172632]
[1625751953962,1.20098842,32376.0,32375.0,0.48115088]